bitfinex-derivatives/quotes_BTCF0:USTF0_20251111
["timestamp","ask_amount","ask_price","bid_price","bid_amount"]
[1762850229996,0.3438,105030.0,105020.0,1.05324765]
[1762850230184,0.0438,105030.0,105020.0,1.05324765]
[1762850230389,0.001,105030.0,105020.0,1.05324765]
[1762850231489,0.001,105030.0,105020.0,0.93412196]
[1762850231891,0.001,105030.0,105020.0,1.05327171]
[1762850232690,0.001,105030.0,105020.0,0.93412196]
[1762850232887,0.02223,105030.0,105020.0,0.93412196]
[1762850233091,0.3890432,105030.0,105020.0,0.93412196]
[1762850233297,0.3890432,105030.0,105020.0,1.05329215]
[1762850233891,0.3890432,105030.0,105020.0,1.41517215]
[1762850234101,0.0438,105030.0,105020.0,1.29600196]
[1762850234397,0.0438,105030.0,105020.0,1.41517476]
[1762850235296,0.1390432,105030.0,105020.0,1.41517476]
[1762850235694,0.0438,105030.0,105020.0,1.41517476]
[1762850236496,0.5030332,105030.0,105020.0,1.03948476]
[1762850236704,0.5030332,105030.0,105020.0,1.11102614]
[1762850236890,0.5030332,105030.0,105020.0,1.09826504]
[1762850237089,0.40779,105030.0,105020.0,1.09826504]
[1762850237591,0.5030332,105030.0,105020.0,1.09826504]
[1762850238096,0.40779,105030.0,105020.0,1.09826504]
[1762850238296,0.5030332,105030.0,105020.0,1.09826504]
[1762850239099,0.5030332,105030.0,105020.0,1.21743784]
[1762850239699,0.5030332,105030.0,105020.0,1.09826504]
[1762850240692,0.40779,105030.0,105020.0,1.09826504]
[1762850240898,0.40779,105030.0,105020.0,1.11142504]
[1762850241701,0.40779,105030.0,105020.0,1.23059784]
[1762850242298,0.3938,105030.0,105020.0,1.23059784]
[1762850242997,0.37223,105030.0,105020.0,1.32581326]
[1762850243196,0.001,105030.0,105020.0,1.32581326]
[1762850243701,0.02432,105030.0,105020.0,1.32581326]
[1762850243903,0.36603,105030.0,105020.0,1.21940156]
[1762850244106,0.4750633,105030.0,105020.0,1.31265326]
[1762850244702,0.4750633,105030.0,105020.0,1.32581326]
[1762850244902,0.4750633,105030.0,105020.0,1.43220056]
[1762850245104,0.4612733,105030.0,105020.0,1.43220056]
[1762850245700,0.36603,105030.0,105020.0,1.43220056]
[1762850245906,0.4612733,105030.0,105020.0,1.43220056]
[1762850246104,0.4750633,105030.0,105020.0,1.43220056]
[1762850246706,0.4750633,105030.0,105020.0,0.62194524]
[1762850246910,0.4750633,105030.0,105020.0,1.26358524]
[1762850249504,0.4750633,105030.0,105020.0,0.98358524]
[1762850249700,0.5814628,105030.0,105020.0,1.05801294]
[1762850249899,0.4750633,105030.0,105020.0,1.01801294]
[1762850250105,0.4750633,105030.0,105020.0,1.12441244]
[1762850250905,0.4750633,105030.0,105020.0,1.02916004]
[1762850251112,0.5814628,105030.0,105020.0,0.05142117]
[1762850251411,0.5814628,105030.0,105020.0,0.17082397]
[1762850251711,0.5814628,105030.0,105020.0,0.23211221]
[1762850251910,0.5814628,105030.0,105020.0,0.13685981]
[1762850253314,0.5814628,105030.0,105020.0,0.09154981]
[1762850253511,0.5814628,105030.0,105020.0,0.08935178]
[1762850253702,0.5814628,105030.0,105020.0,0.11386981]
[1762850254516,0.5814628,105030.0,105020.0,0.35188221]
[1762850254714,0.5814628,105030.0,105020.0,0.13662981]
[1762850255017,0.5814628,105030.0,105020.0,0.05142117]
[1762850256114,0.5814628,105030.0,105020.0,0.02866117]
[1762850258219,0.5814628,105030.0,105020.0,0.14667357]
[1762850258515,0.5814628,105030.0,105020.0,0.25667357]
[1762850259020,0.5814628,105030.0,105020.0,0.36307307]
[1762850259217,0.5814628,105030.0,105020.0,0.15782067]
[1762850259823,0.5814628,105030.0,105020.0,0.00634117]
[1762850260621,0.6878623,105030.0,105020.0,3.14e-06]
[1762850260915,0.5814628,105030.0,105020.0,3.14e-06]
[1762850261120,0.6878623,105030.0,105020.0,3.14e-06]
[1762850261517,0.1511015,105010.0,105000.0,9.521e-05]
[1762850261718,0.627501,105010.0,105000.0,9.521e-05]
[1762850262017,0.1517606,105000.0,104990.0,0.00014314]
[1762850262222,0.5581601,105000.0,104990.0,0.00014314]
[1762850262914,0.92002803,105000.0,104990.0,0.00014314]
[1762850264223,0.92102803,105000.0,104990.0,0.00414314]
[1762850264419,0.92102803,105000.0,104990.0,0.25136027]
[1762850264625,0.92002803,105000.0,104990.0,0.15208067]
[1762850264827,0.92202803,105000.0,104990.0,0.15208067]
[1762850265324,0.92202803,105000.0,104990.0,0.36736027]
[1762850265529,0.92202803,105000.0,104990.0,0.15208067]
[1762850268126,0.81562853,105000.0,104990.0,0.15208067]
[1762850268314,0.92202803,105000.0,104990.0,0.15208067]
[1762850268725,0.56022803,105000.0,104990.0,0.15208067]
[1762850270321,0.66662753,105000.0,104990.0,0.00014314]
[1762850271726,0.1544287,104980.0,104970.0,0.1490395]
[1762850271922,0.5144287,104980.0,104970.0,0.15123753]
[1762850272126,0.5144287,104980.0,104970.0,0.29378501]
[1762850272535,0.6208282,104980.0,104970.0,0.37899365]
[1762850272734,0.6208282,104980.0,104970.0,0.52644617]
[1762850272937,0.6208282,104980.0,104970.0,0.62174397]
[1762850273133,0.5144287,104980.0,104970.0,0.62174397]
[1762850273330,0.5144287,104980.0,104970.0,0.15223753]
[1762850273531,0.6218282,104980.0,104970.0,0.04783803]
[1762850273727,0.6218282,104980.0,104970.0,0.00519803]
[1762850274034,0.6218282,104980.0,104970.0,0.27423753]
[1762850274236,0.6208282,104980.0,104970.0,0.36853533]
[1762850274424,0.5014987,104980.0,104970.0,0.52121533]
[1762850275036,0.5144287,104980.0,104970.0,0.52121533]
[1762850275236,0.41914,104980.0,104970.0,0.52121533]
[1762850275535,0.5144287,104980.0,104970.0,0.52121533]
[1762850275930,0.41914,104980.0,104970.0,0.52121533]
[1762850276236,0.5144287,104980.0,104970.0,0.52121533]
[1762850277136,0.5144287,104980.0,104970.0,0.27223753]
[1762850277835,0.5144287,104980.0,104970.0,0.15223753]
[1762850279738,0.5144287,104980.0,104970.0,0.40753533]
[1762850280629,0.5144287,104980.0,104970.0,0.04583803]
[1762850280830,0.5144287,104980.0,104970.0,0.15223753]
[1762850281526,0.6208282,104980.0,104970.0,0.15223753]
[1762850282032,0.6208282,104980.0,104970.0,0.04583803]
[1762850282226,0.6208282,104980.0,104970.0,0.15223753]
[1762850284437,0.6208282,104980.0,104970.0,0.35753533]
[1762850284624,0.6208282,104980.0,104970.0,0.26223753]
[1762850285030,0.6208282,104980.0,104970.0,0.15223753]
[1762850285241,0.6208282,104980.0,104970.0,0.27223753]
[1762850285641,0.6208282,104980.0,104970.0,0.36753533]
[1762850285831,0.6208282,104980.0,104970.0,0.55753533]
[1762850286031,0.41914,104980.0,104970.0,0.57113533]
[1762850286229,0.40621,104980.0,104970.0,0.81977777]
[1762850286537,0.5014987,104980.0,104970.0,0.90498641]
[1762850287331,0.40621,104980.0,104970.0,0.90498641]
[1762850290038,0.5014987,104980.0,104970.0,0.90498641]
[1762850290436,0.5150487,104980.0,104970.0,0.71337827]
[1762850290635,0.5150487,104980.0,104970.0,0.83255107]
[1762850290946,0.5014987,104980.0,104970.0,0.71337827]
[1762850291737,0.5014987,104980.0,104970.0,0.83255107]
[1762850292846,0.40621,104980.0,104970.0,0.83255107]
[1762850293146,0.36,104980.0,104970.0,0.83255107]
[1762850293345,0.4773387,104980.0,104970.0,0.83255107]
[1762850293544,0.4984487,104980.0,104970.0,0.83255107]
[1762850293741,0.38205,104980.0,104970.0,0.83255107]
[1762850294050,0.36,104980.0,104970.0,0.81977777]
[1762850294241,0.13858944,104990.0,104980.0,0.05641]
[1762850294444,0.46858944,104990.0,104980.0,1.13766853]
[1762850294740,0.48213944,104990.0,104980.0,0.88147947]
[1762850294945,0.48213944,104990.0,104980.0,0.77507997]
[1762850295145,0.48213944,104990.0,104980.0,0.86047003]
[1762850295349,0.48213944,104990.0,104980.0,0.74129723]
[1762850295543,0.58953894,104990.0,104980.0,0.29410717]
[1762850295738,0.58953894,104990.0,104980.0,0.59208773]
[1762850295940,0.58953894,104990.0,104980.0,0.50669767]
[1762850296136,0.58953894,104990.0,104980.0,0.61309717]
[1762850296137,0.59053894,104990.0,104980.0,0.61309717]
[1762850296338,0.59053894,104990.0,104980.0,0.50669767]
[1762850296750,0.59053894,104990.0,104980.0,0.64820767]
[1762850296951,0.59053894,104990.0,104980.0,0.75460717]
[1762850297255,0.59053894,104990.0,104980.0,0.63460717]
[1762850297443,0.59053894,104990.0,104980.0,0.72989587]
[1762850297640,0.59053894,104990.0,104980.0,1.16119537]
[1762850297641,0.48413944,104990.0,104980.0,1.16119537]
[1762850298336,0.59053894,104990.0,104980.0,0.08758809]
[1762850298539,0.59053894,104990.0,104980.0,0.00219803]
[1762850299836,0.59053894,104990.0,104980.0,0.15134753]
[1762850300242,0.59053894,104990.0,104980.0,0.13010753]
[1762850301151,0.1137087,104980.0,104970.0,0.14058006]
[1762850301354,0.52230623,104980.0,104970.0,0.1615895]
[1762850301554,0.52230623,104980.0,104970.0,0.30532977]
[1762850301948,0.52230623,104980.0,104970.0,0.39071983]
[1762850302149,0.41590673,104980.0,104970.0,0.39071983]
[1762850302453,0.41590673,104980.0,104970.0,0.39171983]
[1762850303154,0.41590673,104980.0,104970.0,0.53171983]
[1762850303356,0.41590673,104980.0,104970.0,0.39171983]
[1762850303555,0.52230623,104980.0,104970.0,0.39171983]
[1762850304856,0.52230623,104980.0,104970.0,0.28532033]
[1762850304857,0.41590673,104980.0,104970.0,0.28532033]
[1762850306357,0.41590673,104980.0,104970.0,0.19993027]
[1762850307059,0.41590673,104980.0,104970.0,0.31910307]
[1762850307962,0.41590673,104980.0,104970.0,0.82090307]
[1762850308161,0.41590673,104980.0,104970.0,0.68090307]
[1762850308360,0.41590673,104980.0,104970.0,0.64709594]
[1762850310064,0.5224301,104980.0,104970.0,0.64713594]
[1762850310465,0.5224301,104980.0,104970.0,0.50339567]
[1762850312162,0.41590673,104980.0,104970.0,0.50339567]
[1762850313756,0.5224301,104980.0,104970.0,0.14155567]
[1762850313961,0.5224301,104980.0,104970.0,0.50339567]
[1762850314371,0.41590673,104980.0,104970.0,0.50339567]
[1762850314876,0.41590673,104980.0,104970.0,0.63339567]
[1762850315170,0.41590673,104980.0,104970.0,0.50339567]
[1762850316266,0.5224301,104980.0,104970.0,0.50339567]
[1762850316775,0.5224301,104980.0,104970.0,0.14155567]
[1762850317269,0.5224301,104980.0,104970.0,0.12031567]
[1762850317571,0.5224301,104980.0,104970.0,0.001]
[1762850321373,0.41590673,104980.0,104970.0,0.02235]
[1762850321676,0.5224301,104980.0,104970.0,0.001]
[1762850322174,0.5224301,104980.0,104970.0,0.05619]
[1762850322776,0.41590673,104980.0,104970.0,0.05619]
[1762850323072,0.5224301,104980.0,104970.0,0.05619]
[1762850324474,0.5224301,104980.0,104970.0,0.04359]
[1762850325074,0.5224301,104980.0,104970.0,0.02235]
[1762850325374,0.5224301,104980.0,104970.0,0.001]
[1762850326173,0.5224301,104980.0,104970.0,0.02235]
[1762850326575,0.5224301,104980.0,104970.0,0.001]
[1762850328676,0.1137178,104970.0,104960.0,0.14069881]
[1762850328868,0.5624392,104970.0,104960.0,0.14069881]
[1762850329268,0.9242792,104970.0,104960.0,0.14069881]
[1762850329775,0.9252792,104970.0,104960.0,0.14369881]
[1762850329971,0.81875583,104970.0,104960.0,0.28369881]
[1762850330274,0.45691583,104970.0,104960.0,0.28369881]
[1762850332579,0.45691583,104970.0,104960.0,0.63552908]
[1762850332775,0.45691583,104970.0,104960.0,0.43369881]
[1762850332972,0.45691583,104970.0,104960.0,0.34833314]
[1762850333578,0.45691583,104970.0,104960.0,0.26372184]
[1762850334874,0.45691583,104970.0,104960.0,0.39372184]
[1762850335282,0.45691583,104970.0,104960.0,0.30833314]
[1762850335981,0.45691583,104970.0,104960.0,0.42750594]
[1762850336874,0.45691583,104970.0,104960.0,0.30833314]
[1762850337589,0.45691583,104970.0,104960.0,0.42750594]
[1762850338984,0.45691583,104970.0,104960.0,0.52281284]
[1762850339487,0.45691583,104970.0,104960.0,0.42750594]
[1762850339685,0.45691583,104970.0,104960.0,0.52281284]
[1762850340778,0.34319803,104970.0,104960.0,0.59558853]
[1762850340979,0.34319803,104970.0,104960.0,0.51016341]
[1762850341383,0.34319803,104970.0,104960.0,0.65266813]
[1762850341684,0.34319803,104970.0,104960.0,0.77228971]
[1762850341987,0.34319803,104970.0,104960.0,0.65266813]
[1762850344281,0.34319803,104970.0,104960.0,1.04939798]
[1762850344282,0.306,104970.0,104960.0,1.04939798]
[1762850344481,0.13998744,104990.0,104980.0,0.1510987]
[1762850344684,0.49218547,104990.0,104980.0,0.99484767]
[1762850344893,0.49218547,104990.0,104980.0,0.90946207]
[1762850345086,0.49218547,104990.0,104980.0,1.02900191]
[1762850345488,0.49218547,104990.0,104980.0,0.93371321]
[1762850345788,0.49218547,104990.0,104980.0,0.53718984]
[1762850346289,0.49318547,104990.0,104980.0,0.50296772]
[1762850346580,0.49418547,104990.0,104980.0,0.50296772]
[1762850347184,0.49218547,104990.0,104980.0,0.50396772]
[1762850347992,0.49318547,104990.0,104980.0,0.50296772]
[1762850349588,0.49418547,104990.0,104980.0,0.50290874]
[1762850352093,0.49418547,104990.0,104980.0,0.85819744]
[1762850352394,0.49418547,104990.0,104980.0,0.7729387]
[1762850352995,0.49318547,104990.0,104980.0,0.7729387]
[1762850353187,0.49218547,104990.0,104980.0,0.7739387]
[1762850353492,0.49218547,104990.0,104980.0,0.88046207]
[1762850354080,0.49218547,104990.0,104980.0,0.96572081]
[1762850355287,0.49218547,104990.0,104980.0,0.87043211]
[1762850355498,0.49218547,104990.0,104980.0,0.50390874]
[1762850355892,0.61037884,104990.0,104980.0,0.49059874]
[1762850356297,0.61037884,104990.0,104980.0,0.40534]
[1762850356591,0.61037884,104990.0,104980.0,0.4053]
[1762850356993,0.61137884,104990.0,104980.0,0.4043]
[1762850357194,0.61237884,104990.0,104980.0,0.38314]
[1762850357596,0.61237884,104990.0,104980.0,0.4043]
[1762850358294,0.60070884,104990.0,104980.0,0.41757]
[1762850358602,0.49418547,104990.0,104980.0,0.52409337]
[1762850358798,0.49418547,104990.0,104980.0,0.87938207]
[1762850359488,0.37606117,104990.0,104980.0,0.87938207]
[1762850359690,0.30214314,104990.0,104980.0,1.02229827]
[1762850359998,0.30214314,104990.0,104980.0,1.10755701]
[1762850360395,0.39742274,104990.0,104980.0,1.10755701]
[1762850360699,0.44303077,104990.0,104980.0,0.8224862]
[1762850360893,0.44303077,104990.0,104980.0,0.64774494]
[1762850361199,0.45470077,104990.0,104980.0,0.5624862]
[1762850361701,0.44303077,104990.0,104980.0,0.5624862]
[1762850362202,0.44203077,104990.0,104980.0,0.5624862]
[1762850362401,0.44203077,104990.0,104980.0,0.5634862]
[1762850364205,0.44203077,104990.0,104980.0,0.64874494]
[1762850364702,0.44203077,104990.0,104980.0,1.11055701]
[1762850364907,0.44203077,104990.0,104980.0,1.11053041]
[1762850365297,0.44203077,104990.0,104980.0,1.12173848]
[1762850365503,0.44203077,104990.0,104980.0,1.21702718]
[1762850367906,0.44203077,104990.0,104980.0,1.25130828]
[1762850368409,0.39862077,104990.0,104980.0,1.25130828]
[1762850368605,0.41969077,104990.0,104980.0,1.25130828]
[1762850369101,0.41969077,104990.0,104980.0,1.13176844]
[1762850369301,0.44203077,104990.0,104980.0,1.25133858]
[1762850370098,0.39862077,104990.0,104980.0,1.25133858]
[1762850371405,0.30334117,104990.0,104980.0,1.25133858]
[1762850371608,0.39862077,104990.0,104980.0,1.13176844]
[1762850371907,0.41969077,104990.0,104980.0,1.13176844]
[1762850372207,0.44203077,104990.0,104980.0,0.87176844]
[1762850372407,0.44203077,104990.0,104980.0,0.89608069]
[1762850373103,0.44203077,104990.0,104980.0,0.68308715]
[1762850373304,0.44203077,104990.0,104980.0,0.78958392]
[1762850373505,0.44203077,104990.0,104980.0,0.66998297]
[1762850373709,0.44203077,104990.0,104980.0,1.21176844]
[1762850373908,0.44203077,104990.0,104980.0,0.77647974]
[1762850374410,0.56019754,104990.0,104980.0,0.30822297]
[1762850374708,0.56019754,104990.0,104980.0,0.75536236]
[1762850375101,0.56019754,104990.0,104980.0,0.04554]
[1762850375308,0.56019754,104990.0,104980.0,0.13093405]
[1762850375705,0.56019754,104990.0,104980.0,0.16580677]
[1762850375706,0.54852754,104990.0,104980.0,0.16580677]
[1762850376106,0.56019754,104990.0,104980.0,0.04554]
[1762850376308,0.92203754,104990.0,104980.0,0.04554]
[1762850376506,0.92203754,104990.0,104980.0,0.13093405]
[1762850377105,0.92203754,104990.0,104980.0,0.08839405]
[1762850377410,0.92203754,104990.0,104980.0,0.003]
[1762850379509,0.1503687,104980.0,104970.0,0.08539405]
[1762850379814,0.66556027,104980.0,104970.0,0.08539405]
[1762850380406,0.45256673,104980.0,104970.0,0.13089405]
[1762850380610,0.1479178,104970.0,104960.0,0.46621181]
[1762850380917,0.6266126,104970.0,104960.0,0.34661086]
[1762850381415,0.52011583,104970.0,104960.0,0.34661086]
[1762850381614,0.41560803,104970.0,104960.0,0.63661086]
[1762850381809,0.51090583,104970.0,104960.0,0.25230396]
[1762850382009,0.6266126,104970.0,104960.0,0.23853396]
[1762850382510,0.6276126,104970.0,104960.0,0.23953396]
[1762850382715,0.6276126,104970.0,104960.0,0.13303719]
[1762850382918,0.6276126,104970.0,104960.0,0.23953396]
[1762850384517,0.6276126,104970.0,104960.0,0.25330396]
[1762850384719,1.09590937,104970.0,104960.0,9e-08]
[1762850384919,1.09600458,104970.0,104960.0,9e-08]
[1762850385711,0.98950781,104970.0,104960.0,9e-08]
[1762850386206,0.88301104,104970.0,104960.0,9e-08]
[1762850386411,0.98950781,104970.0,104960.0,9e-08]
[1762850388611,0.98950781,104970.0,104960.0,0.02269009]
[1762850388811,0.98950781,104970.0,104960.0,0.04550009]
[1762850390014,0.94609781,104970.0,104960.0,9e-08]
[1762850390419,1.05259458,104970.0,104960.0,9e-08]
[1762850390614,0.94609781,104970.0,104960.0,9e-08]
[1762850394312,0.0953069,104960.0,104950.0,0.0603317]
[1762850394520,0.5682017,104960.0,104950.0,0.2136917]
[1762850394820,0.5682017,104960.0,104950.0,0.0736917]
[1762850395212,0.5682017,104960.0,104950.0,0.18018847]
[1762850395625,0.5702017,104960.0,104950.0,0.18018847]
[1762850396025,0.5712017,104960.0,104950.0,0.18018847]
[1762850397127,0.5838717,104960.0,104950.0,0.18018847]
[1762850397317,0.5838717,104960.0,104950.0,0.0603317]
[1762850397518,0.69036847,104960.0,104950.0,0.0603317]
[1762850399321,0.69036847,104960.0,104950.0,0.0162417]
[1762850399827,0.5838717,104960.0,104950.0,0.0588417]
[1762850401124,0.69036847,104960.0,104950.0,0.0588417]
[1762850401324,0.69036847,104960.0,104950.0,0.0162417]
[1762850401617,0.1513451,104940.0,104930.0,0.12779555]
[1762850401820,0.68653667,104940.0,104930.0,0.01355166]
[1762850402026,0.1523632,104920.0,104910.0,0.05539]
[1762850402227,0.611058,104920.0,104910.0,0.38723907]
[1762850402429,1.831058,104920.0,104910.0,0.05647213]
[1762850402626,1.8311666,104920.0,104910.0,0.05647213]
[1762850403624,1.8311666,104920.0,104910.0,0.05847213]
[1762850404433,1.8311666,104920.0,104910.0,0.3703212]
[1762850404729,1.8311666,104920.0,104910.0,0.1777589]
[1762850404936,1.8321666,104920.0,104910.0,0.1777589]
[1762850405328,1.8321666,104920.0,104910.0,0.1649689]
[1762850405724,1.72566983,104920.0,104910.0,0.3077589]
[1762850405918,1.8321666,104920.0,104910.0,0.1777589]
[1762850406734,1.8321666,104920.0,104910.0,0.05847213]
[1762850407531,1.8321666,104920.0,104910.0,0.1649689]
[1762850408731,1.8321666,104920.0,104910.0,0.05847213]
[1762850409031,1.8321666,104920.0,104910.0,0.2603212]
[1762850409231,1.8321666,104920.0,104910.0,0.3803212]
[1762850409835,1.8321666,104920.0,104910.0,0.2849689]
[1762850410136,1.8321666,104920.0,104910.0,0.6031112]
[1762850410137,1.8194966,104920.0,104910.0,0.6031112]
[1762850410436,1.8194966,104920.0,104910.0,0.4031112]
[1762850410631,0.35330663,104920.0,104910.0,0.65960797]
[1762850410933,0.44864983,104920.0,104910.0,0.65960797]
[1762850411234,0.47045983,104920.0,104910.0,0.5531112]
[1762850411435,0.49299983,104920.0,104910.0,0.5531112]
[1762850411940,0.49299983,104920.0,104910.0,0.1777589]
[1762850412127,0.49299983,104920.0,104910.0,0.7454712]
[1762850412323,0.49299983,104920.0,104910.0,0.9454712]
[1762850416027,0.35330663,104920.0,104910.0,1.05196797]
[1762850416334,0.00014314,104930.0,104920.0,0.1507332]
[1762850416534,0.31234117,104930.0,104920.0,0.70372674]
[1762850416923,0.33415117,104930.0,104920.0,0.70372674]
[1762850417328,0.42948537,104930.0,104920.0,0.70372674]
[1762850417529,0.42954731,104930.0,104920.0,0.70372674]
[1762850417833,0.45208731,104930.0,104920.0,0.36372674]
[1762850418032,0.45308731,104930.0,104920.0,0.69472674]
[1762850418535,0.31340311,104930.0,104920.0,0.83734245]
[1762850418937,0.31340311,104930.0,104920.0,0.83834245]
[1762850419637,0.40873721,104930.0,104920.0,0.83834245]
[1762850419948,0.31340311,104930.0,104920.0,0.83834245]
[1762850420338,0.43054731,104930.0,104920.0,0.83834245]
[1762850420729,0.45327731,104930.0,104920.0,0.83834245]
[1762850421426,0.45327731,104930.0,104920.0,1.20066245]
[1762850421637,0.45327731,104930.0,104920.0,0.83834245]
[1762850421939,0.45327731,104930.0,104920.0,1.20062245]
[1762850424943,0.45327731,104930.0,104920.0,0.32000571]
[1762850425142,0.45327731,104930.0,104920.0,0.4266143]
[1762850425348,0.45327731,104930.0,104920.0,0.93754911]
[1762850425642,0.46248731,104930.0,104920.0,1.0441577]
[1762850425842,0.45327731,104930.0,104920.0,1.0441577]
[1762850426837,0.45327731,104930.0,104920.0,0.93754911]
[1762850427943,0.45327731,104930.0,104920.0,1.0441577]
[1762850428846,0.45327731,104930.0,104920.0,0.93754911]
[1762850429849,0.45327731,104930.0,104920.0,1.0441577]
[1762850430038,0.35794311,104930.0,104920.0,1.0441577]
[1762850430342,0.45327731,104930.0,104920.0,1.0441577]
[1762850430843,0.35794311,104930.0,104920.0,1.0441577]
[1762850431547,0.45327731,104930.0,104920.0,1.0441577]
[1762850432540,0.31340311,104930.0,104920.0,1.0441577]
[1762850433841,0.45271731,104930.0,104920.0,1.0441577]
[1762850434038,0.35738311,104930.0,104920.0,1.0441577]
[1762850434437,0.31340311,104930.0,104920.0,1.0441577]
[1762850434643,0.31340311,104930.0,104920.0,1.16351248]
[1762850436547,0.40873731,104930.0,104920.0,1.16351248]
[1762850436750,0.45271731,104930.0,104920.0,1.16351248]
[1762850437839,0.45271731,104930.0,104920.0,0.77690389]
[1762850438040,0.45271731,104930.0,104920.0,1.19351248]
[1762850439352,0.45271731,104930.0,104920.0,1.0741577]
[1762850439951,0.45271731,104930.0,104920.0,1.19404694]
[1762850440741,0.31340311,104930.0,104920.0,1.0741577]
[1762850441142,0.42998741,104930.0,104920.0,1.0741577]
[1762850441444,0.45271741,104930.0,104920.0,1.1940802]
[1762850443242,0.45271741,104930.0,104920.0,1.08747161]
[1762850443441,0.45271741,104930.0,104920.0,1.1940802]
[1762850444149,0.45271741,104930.0,104920.0,1.0240802]
[1762850444853,0.45271741,104930.0,104920.0,1.2240802]
[1762850445549,0.45271741,104930.0,104920.0,0.77723141]
[1762850445755,0.46192741,104930.0,104920.0,0.68188821]
[1762850446146,0.45271741,104930.0,104920.0,0.68188821]
[1762850446452,0.45271741,104930.0,104920.0,0.91723151]
[1762850447754,0.45271741,104930.0,104920.0,1.09723151]
[1762850447946,0.35738311,104930.0,104920.0,1.2038401]
[1762850448146,0.45271731,104930.0,104920.0,1.2038401]
[1762850448353,0.35738311,104930.0,104920.0,1.2038401]
[1762850449149,0.33465311,104930.0,104920.0,1.2038401]
[1762850451454,0.35691311,104930.0,104920.0,1.2038401]
[1762850451651,0.33465311,104930.0,104920.0,1.2038401]
[1762850451843,0.31340311,104930.0,104920.0,1.2038401]
[1762850453157,0.33491311,104930.0,104920.0,1.0839176]
[1762850453860,0.45250731,104930.0,104920.0,1.0839176]
[1762850454059,0.45250731,104930.0,104920.0,1.20393681]
[1762850456061,0.45250731,104930.0,104920.0,1.0839176]
[1762850456661,0.45250731,104930.0,104920.0,0.8039176]
[1762850457662,0.45250731,104930.0,104920.0,1.0939176]
[1762850458577,0.45250731,104930.0,104920.0,0.8039176]
[1762850459366,0.45250731,104930.0,104920.0,1.0439176]
[1762850459569,0.35717311,104930.0,104920.0,1.0439176]
[1762850459864,0.45250731,104930.0,104920.0,1.0439176]
[1762850460068,0.45250731,104930.0,104920.0,1.16393114]
[1762850462769,0.45250731,104930.0,104920.0,0.80197114]
[1762850462969,0.45250731,104930.0,104920.0,1.16393114]
[1762850463667,0.45250731,104930.0,104920.0,1.05732255]
[1762850463869,0.45250731,104930.0,104920.0,1.16393114]
[1762850464468,0.45250731,104930.0,104920.0,1.02393114]
[1762850466070,0.45250731,104930.0,104920.0,1.17393114]
[1762850467381,0.45250731,104930.0,104920.0,1.0539176]
[1762850468577,0.45250731,104930.0,104920.0,0.94730901]
[1762850468782,0.45250731,104930.0,104920.0,0.9039176]
[1762850469778,0.45250731,104930.0,104920.0,1.0939176]
[1762850470082,0.45250731,104930.0,104920.0,1.21388889]
[1762850470282,0.45250731,104930.0,104920.0,1.0939176]
[1762850471078,0.31340311,104930.0,104920.0,1.0939176]
[1762850471285,0.31120508,104930.0,104920.0,1.0939176]
[1762850471883,0.31120508,104930.0,104920.0,1.26537028]
[1762850472783,0.1386675,104950.0,104940.0,0.1537751]
[1762850472986,0.1386675,104950.0,104940.0,1.08220798]
[1762850472987,0.44086553,104950.0,104940.0,1.08220798]
[1762850473684,0.44086553,104950.0,104940.0,0.96230369]
[1762850474975,0.3,104950.0,104940.0,1.06991228]
[1762850475178,0.301,104950.0,104940.0,1.21367007]
[1762850475386,0.396316,104950.0,104940.0,1.33357436]
[1762850475586,0.301,104950.0,104940.0,1.33357436]
[1762850475786,0.301,104950.0,104940.0,1.22696577]
[1762850476788,0.301,104950.0,104940.0,1.33357436]
[1762850478175,0.091,104950.0,104940.0,1.42886236]
[1762850478585,0.00014314,104960.0,104950.0,0.153766]
[1762850478782,0.00014314,104960.0,104950.0,0.58037459]
[1762850478783,0.38545004,104960.0,104950.0,0.58037459]
[1762850478984,0.38764807,104960.0,104950.0,0.72354379]
[1762850479889,0.38964807,104960.0,104950.0,0.72354379]
[1762850480587,0.43365807,104960.0,104950.0,0.72354379]
[1762850480782,0.43465807,104960.0,104950.0,0.72354379]
[1762850481182,0.41347807,104960.0,104950.0,0.72354379]
[1762850481388,0.41247807,104960.0,104950.0,0.72354379]
[1762850481584,0.41147807,104960.0,104950.0,0.72654379]
[1762850481791,0.31617117,104960.0,104950.0,0.84644808]
[1762850481992,0.29334117,104960.0,104950.0,0.84644808]
[1762850482393,0.29114314,104960.0,104950.0,0.84644808]
[1762850483885,0.05114314,104960.0,104950.0,0.941727]
[1762850484590,0.33114314,104960.0,104950.0,0.941727]
[1762850484795,0.37114314,104960.0,104950.0,0.941727]
[1762850486689,0.39617117,104960.0,104950.0,0.941727]
[1762850486899,0.39617117,104960.0,104950.0,1.41002295]
[1762850486900,0.37334117,104960.0,104950.0,1.41002295]
[1762850487191,0.00334117,104960.0,104950.0,1.41002295]
[1762850487388,0.06114314,104960.0,104950.0,1.41002295]
[1762850487989,0.15645004,104960.0,104950.0,1.41002295]
[1762850488294,0.36114314,104960.0,104950.0,1.41002295]
[1762850488594,0.45645004,104960.0,104950.0,1.41002295]
[1762850488894,0.02397314,104960.0,104950.0,1.41002295]
[1762850489089,0.45928004,104960.0,104950.0,1.41002295]
[1762850489286,0.48394807,104960.0,104950.0,0.84637176]
[1762850489593,0.48394807,104960.0,104950.0,1.20821176]
[1762850490689,0.36617117,104960.0,104950.0,1.20821176]
[1762850490891,0.0453,104990.0,104980.0,0.05782]
[1762850491096,0.45277803,104990.0,104980.0,0.16435227]
[1762850491297,0.5709803,104990.0,104980.0,0.05782]
[1762850491487,0.5709803,104990.0,104980.0,0.04477]
[1762850491998,0.5729803,104990.0,104980.0,0.04477]
[1762850492194,0.5749803,104990.0,104980.0,0.04477]
[1762850492697,0.46844803,104990.0,104980.0,0.04477]
[1762850492891,0.5749803,104990.0,104980.0,0.04477]
[1762850493396,0.5729803,104990.0,104980.0,0.04477]
[1762850493598,0.5739803,104990.0,104980.0,0.04477]
[1762850494098,0.5729803,104990.0,104980.0,0.04477]
[1762850496293,0.5729803,104990.0,104980.0,0.02328]
[1762850496495,0.5729803,104990.0,104980.0,0.04477]
[1762850496802,0.1497988,104980.0,104970.0,0.04491314]
[1762850497100,0.70506137,104980.0,104970.0,0.02342314]
[1762850497599,0.70506137,104980.0,104970.0,0.04491314]
[1762850497994,0.70506137,104980.0,104970.0,0.04591314]
[1762850498599,0.70506137,104980.0,104970.0,0.00114314]
[1762850499597,0.66076137,104980.0,104950.0,0.0633]
[1762850499903,0.25980917,104960.0,104950.0,0.49157227]
[1762850500093,0.5820072,104960.0,104950.0,0.40653]
[1762850500901,0.5820072,104960.0,104950.0,0.40953]
[1762850501402,0.5820072,104960.0,104950.0,0.40853]
[1762850501594,0.5820072,104960.0,104950.0,0.04777]
[1762850501896,0.5820072,104960.0,104950.0,0.40957]
[1762850502198,0.5820072,104960.0,104950.0,0.52957]
[1762850502398,0.5820072,104960.0,104950.0,0.40757]
[1762850502601,0.47647493,104960.0,104950.0,0.55314]